bitfinex-derivatives/quotes_SOLF0:USTF0_20220108
["timestamp","ask_amount","ask_price","bid_price","bid_amount"]
[1641638705286,7.80163159,147.67,147.61,12.7962803]
[1641638705586,7.80163159,147.67,147.61,35.08228356]
[1641638707385,7.80163159,147.67,147.61,33.50228356]
[1641638707588,7.80163159,147.67,147.61,26.50228356]
[1641638708084,35.46642159,147.67,147.61,26.50228356]
[1641638708485,27.66479,147.67,147.66,57.58851661]
[1641638709085,27.66479,147.67,147.61,26.50228356]
[1641638709487,27.66479,147.67,147.61,19.94228356]
[1641638709688,27.66479,147.67,147.61,14.08228356]
[1641638709887,27.66479,147.67,147.6,88.58027356]
[1641638710090,27.66479,147.67,147.6,81.58027356]
[1641638710888,27.66479,147.67,147.66,57.57778304]
[1641638711091,3.61817862,147.67,147.66,57.57778304]
[1641638711389,1.16212151,147.69,147.66,57.57778304]
[1641638711790,1.16212151,147.69,147.65,57.57778304]
[1641638713191,1.16212151,147.69,147.66,57.57778304]
[1641638713791,8.96274984,147.69,147.66,57.57778304]
[1641638715394,8.96274984,147.69,147.66,51.57778304]
[1641638715892,8.96274984,147.69,147.61,95.947249]
[1641638716193,14.80674984,147.69,147.61,85.947249]
[1641638716692,14.80674984,147.69,147.6,81.58027356]
[1641638716894,14.80674984,147.69,147.67,29.37137779]
[1641638717092,14.80674984,147.69,147.6,81.58027356]
[1641638719394,14.80674984,147.69,147.6,19.74707356]
[1641638719894,14.80674984,147.69,147.6,10.84707356]
[1641638720095,14.80674984,147.69,147.6,8.90707356]
[1641638720298,27.66479,147.67,147.6,8.90707356]
[1641638720995,27.66479,147.67,147.6,3.36707356]
[1641638721296,27.66479,147.67,147.57,79.99459793]
[1641638721497,27.66479,147.67,147.54,52.3816]
[1641638721699,10.77713395,147.63,147.51,66.117]
[1641638721897,4.0,147.6,147.5,119.56549398]
[1641638722096,21.66413629,147.6,147.5,101.06549398]
[1641638722296,27.66479,147.58,147.5,85.04549398]
[1641638722597,5.4243484,147.49,147.47,52.9011]
[1641638722896,12.9523484,147.49,147.45,72.04549398]
[1641638723199,12.9523484,147.49,147.45,66.04549398]
[1641638723397,5.42535547,147.46,147.45,66.04549398]
[1641638723796,5.42535547,147.46,147.4,31.16031593]
[1641638723797,5.42535547,147.46,147.4,67.82561467]
[1641638723996,1.85103329,147.46,147.4,63.82561467]
[1641638724197,7.528,147.49,147.4,95.49040467]
[1641638724396,7.528,147.49,147.43,4.0]
[1641638724596,7.528,147.49,147.4,31.66479]
[1641638724798,7.528,147.49,147.42,4.0]
[1641638725096,7.528,147.49,147.4,27.66479]
[1641638725299,7.528,147.49,147.39,4.0]
[1641638725496,7.528,147.49,147.38,4.0]
[1641638726096,14.31088001,147.49,147.38,13.16526124]
[1641638727798,14.31088001,147.49,147.38,4.0]
[1641638727998,14.31088001,147.49,147.38,57.21686356]
[1641638728200,24.43088001,147.49,147.38,57.21686356]
[1641638728798,24.43088001,147.49,147.38,61.21686356]
[1641638728999,24.43088001,147.49,147.39,57.21686356]
[1641638729501,5.42639865,147.43,147.39,57.21686356]
[1641638729904,5.42639865,147.43,147.4,57.21686356]
[1641638730805,0.80963978,147.43,147.4,57.21686356]
[1641638731004,16.90288001,147.49,147.4,57.21686356]
[1641638732704,10.12,147.49,147.4,57.21686356]
[1641638733106,4.0,147.48,147.4,57.21686356]
[1641638733306,7.81315278,147.45,147.38,33.25686356]
[1641638733607,14.78015278,147.45,147.38,33.25686356]
[1641638733805,14.78015278,147.45,147.38,23.25686356]
[1641638734206,14.78015278,147.45,147.36,16.50419429]
[1641638734407,27.66479,147.44,147.33,4.0]
[1641638735009,27.66479,147.44,147.34,4.0]
[1641638735409,6.51223115,147.42,147.34,4.0]
[1641638736308,5.42783581,147.39,147.34,4.0]
[1641638737113,7.81315278,147.45,147.38,4.0]
[1641638737309,7.81315278,147.45,147.39,4.0]
[1641638737510,7.81315278,147.45,147.38,6.062]
[1641638737716,7.81315278,147.45,147.36,10.78127013]
[1641638737910,7.81315278,147.45,147.36,6.78127013]
[1641638738112,7.81315278,147.45,147.41,4.0]
[1641638738311,7.81315278,147.45,147.41,31.66479]
[1641638738612,10.12,147.49,147.41,31.66479]
[1641638738815,16.62926467,147.49,147.41,27.66479]
[1641638739211,16.62926467,147.49,147.42,7.0531211]
[1641638740315,16.62926467,147.49,147.44,27.66479]
[1641638740920,16.62926467,147.49,147.45,7.0531211]
[1641638742217,16.62926467,147.49,147.42,7.0531211]
[1641638742619,5.42573508,147.45,147.42,7.0531211]
[1641638744020,12.89273508,147.45,147.42,7.0531211]
[1641638744220,12.89273508,147.45,147.42,45.00882787]
[1641638745121,12.89273508,147.45,147.42,7.0531211]
[1641638745322,7.467,147.45,147.42,1.62639925]
[1641638746022,7.467,147.45,147.4,37.95570677]
[1641638746926,7.467,147.45,147.41,37.95570677]
[1641638748026,7.467,147.45,147.43,37.95570677]
[1641638749027,6.51047653,147.46,147.43,37.95570677]
[1641638749228,6.51047653,147.46,147.43,27.95570677]
[1641638749728,6.51047653,147.46,147.44,2.00663492]
[1641638749928,0.41716929,147.46,147.44,2.00663492]
[1641638750128,46.27679,147.49,147.44,2.00663492]
[1641638750329,46.27679,147.49,147.41,57.08013798]
[1641638750529,27.66479,147.46,147.41,57.08013798]
[1641638750727,34.24679,147.46,147.41,57.08013798]
[1641638751331,42.05910805,147.46,147.41,57.08013798]
[1641638753932,42.05910805,147.46,147.42,47.08013798]
[1641638754131,4.0,147.45,147.42,47.08013798]
[1641638754331,48.8435987,147.46,147.42,35.86013798]
[1641638754531,27.66479,147.43,147.42,32.86013798]
[1641638754731,35.34579,147.43,147.37,95.36143927]
[1641638754932,35.34579,147.43,147.36,30.73981954]
[1641638755433,6.51307919,147.4,147.36,30.73981954]
[1641638755631,6.51307919,147.4,147.36,13.65347802]
[1641638756733,6.51307919,147.4,147.34,21.66479]
[1641638757334,12.06507919,147.4,147.34,21.66479]
[1641638758037,12.06507919,147.4,147.35,97.34956121]
[1641638758738,6.51307919,147.4,147.35,97.34956121]
[1641638758938,6.51307919,147.4,147.34,101.34956121]
[1641638759140,6.51307919,147.4,147.34,97.34956121]
[1641638759939,0.34866323,147.4,147.36,95.36143927]
[1641638760139,27.66479,147.43,147.36,95.36143927]
[1641638761241,27.66479,147.43,147.37,95.36143927]
[1641638761641,37.60479,147.43,147.37,95.36143927]
[1641638762241,13.52710072,147.43,147.36,95.36143927]
[1641638762442,13.52710072,147.43,147.36,123.02622927]
[1641638762647,13.52710072,147.43,147.38,32.72794148]
[1641638763445,9.94,147.43,147.38,17.08634152]
[1641638764845,9.94,147.43,147.39,57.57178015]
[1641638765448,6.51296955,147.4,147.39,47.39178015]
[1641638765650,6.51296955,147.4,147.38,17.08634152]
[1641638765948,6.51296955,147.4,147.35,95.36143927]
[1641638766748,6.51296955,147.4,147.36,95.36143927]
[1641638766952,6.51296955,147.4,147.36,85.86143927]
[1641638767349,9.94,147.43,147.36,85.86143927]
[1641638767550,7.81231805,147.46,147.38,4.0]
[1641638767750,7.81231805,147.46,147.38,10.78058042]
[1641638768350,7.81231805,147.46,147.41,6.77920141]
[1641638768550,10.12,147.49,147.45,27.66479]
[1641638769952,10.12,147.49,147.46,10.15977233]
[1641638770654,10.12,147.49,147.46,2.14241399]
[1641638771253,5.42486018,147.47,147.46,2.14241399]
[1641638772555,0.0594688,147.47,147.46,2.14241399]
[1641638772955,10.12,147.49,147.46,2.14241399]
[1641638773255,10.12,147.49,147.45,170.32492662]
[1641638773857,10.12,147.49,147.46,2.14241399]
[1641638774056,10.12,147.49,147.46,120.98930026]
[1641638775056,59.32750099,147.53,147.46,2.14241399]
[1641638775457,59.32750099,147.53,147.47,40.89959187]
[1641638775957,10.4,147.53,147.47,40.89959187]
[1641638776358,10.4,147.53,147.47,112.92077163]
[1641638777859,6.5084697,147.51,147.49,95.83443011]
[1641638778059,6.70946724,147.53,147.49,95.83443011]
[1641638778861,4.0,147.52,147.49,80.95443011]
[1641638779060,11.865,147.52,147.47,17.08634152]
[1641638779461,7.865,147.52,147.5,23.81325035]
[1641638780065,6.70946724,147.53,147.5,23.81325035]
[1641638780262,6.70946724,147.53,147.5,21.67083636]
[1641638780463,6.70946724,147.53,147.48,38.32063529]
[1641638780663,6.70946724,147.53,147.48,9.04533529]
[1641638780664,27.66479,147.52,147.48,9.04533529]
[1641638781465,27.66479,147.52,147.45,57.47418836]
[1641638782468,6.78195999,147.51,147.45,57.47418836]
[1641638782868,6.78195999,147.51,147.44,57.47418836]
[1641638783367,6.5102789,147.46,147.44,57.47418836]
[1641638783767,6.5102789,147.46,147.43,65.4915467]
[1641638784867,6.5102789,147.46,147.43,57.4915467]
[1641638785468,6.5102789,147.46,147.43,0.01735834]
[1641638785668,6.5102789,147.46,147.42,87.23136624]
[1641638786267,6.5102789,147.46,147.42,57.47418836]
[1641638786868,27.66479,147.47,147.42,50.9620122]
[1641638787267,27.66479,147.47,147.41,50.9620122]
[1641638787268,7.8129498,147.45,147.41,50.9620122]
[1641638787569,16.5189498,147.45,147.41,50.9620122]
[1641638788067,16.5189498,147.45,147.39,84.04094152]
[1641638788267,10.78408371,147.45,147.39,17.08634152]
[1641638788467,8.706,147.45,147.39,17.08634152]
[1641638789570,8.706,147.45,147.38,44.75113152]
[1641638789770,6.78426052,147.46,147.38,44.75113152]
[1641638790871,6.78426052,147.46,147.38,140.60346674]
[1641638792469,6.51121254,147.44,147.38,140.60346674]
[1641638793173,6.51121254,147.44,147.38,44.75113152]
[1641638797477,6.51121254,147.44,147.41,57.50680576]
[1641638798279,6.51121254,147.44,147.42,57.50680576]
[1641638800377,1.512417,147.44,147.42,57.50680576]
[1641638800679,6.78426052,147.46,147.42,57.50680576]
[1641638801580,37.72479,147.47,147.42,65.35380576]
[1641638801980,37.72479,147.47,147.43,57.50680576]
[1641638802881,37.72479,147.47,147.46,57.50680576]
[1641638803084,10.06,147.47,147.46,57.50680576]
[1641638803785,10.06,147.47,147.41,123.51712522]
[1641638803786,10.06,147.47,147.45,57.50680576]
[1641638805990,16.56990884,147.47,147.45,57.50680576]
[1641638807088,16.56990884,147.47,147.42,7.55158972]
[1641638807089,16.56990884,147.47,147.46,57.50680576]
[1641638808590,16.56990884,147.47,147.42,167.92012494]
[1641638808790,1.36182562,147.47,147.44,95.85233522]
[1641638809190,7.81086532,147.49,147.45,89.85233522]
[1641638809392,17.79086532,147.49,147.45,89.85233522]
[1641638809992,17.79086532,147.49,147.43,20.00660486]
[1641638810193,17.79086532,147.49,147.48,57.59225781]
[1641638811298,17.79086532,147.49,147.48,47.61225781]
[1641638811899,17.79086532,147.49,147.42,37.09294638]
[1641638812100,17.79086532,147.49,147.42,39.09929963]
[1641638812700,17.79086532,147.49,147.44,27.66479]
[1641638812901,21.38333488,147.51,147.44,27.66479]
[1641638813201,21.38333488,147.51,147.45,9.55794297]
[1641638814002,21.38333488,147.51,147.45,7.55158972]
[1641638814202,21.38333488,147.51,147.44,27.66479]
[1641638814402,6.51022213,147.47,147.44,27.66479]
[1641638814802,6.51022213,147.47,147.45,7.55158972]
[1641638816203,6.51022213,147.47,147.45,1.01158972]
[1641638817002,6.51022213,147.47,147.42,29.54135666]
[1641638817203,15.16322213,147.47,147.42,27.54135666]
[1641638817403,15.16322213,147.47,147.42,19.54135666]
[1641638817605,6.511604,147.43,147.42,13.54135666]
[1641638817803,13.746604,147.43,147.42,13.54135666]
[1641638818802,13.746604,147.43,147.41,27.66479]
[1641638819005,1.33954196,147.43,147.41,114.67705392]
[1641638819803,1.33954196,147.43,147.41,96.01226392]
[1641638820003,8.653,147.47,147.4,96.01226392]
[1641638820203,12.653,147.47,147.4,96.01226392]
[1641638820405,8.653,147.47,147.4,96.01226392]
[1641638821204,8.653,147.47,147.4,87.73226392]
[1641638821607,4.0,147.44,147.4,80.07226392]
[1641638821805,11.199,147.44,147.4,41.87226392]
[1641638822005,4.0,147.43,147.4,41.87226392]
[1641638822207,7.199,147.44,147.38,94.75129]
[1641638822406,4.0,147.46,147.38,94.75129]
[1641638822806,27.66479,147.45,147.38,94.75129]
[1641638823008,31.66479,147.45,147.38,94.75129]
[1641638823707,27.66479,147.45,147.35,91.32459]
[1641638823906,4.0,147.44,147.35,64.9464]
[1641638824108,4.0,147.42,147.35,64.9464]
[1641638824306,6.51372505,147.39,147.35,55.9464]
[1641638824507,14.70172505,147.39,147.34,10.13570914]
[1641638824707,6.51505221,147.36,147.34,4.13570914]
[1641638824907,12.92205221,147.36,147.34,4.13570914]
[1641638825706,12.92205221,147.36,147.31,27.66479]
[1641638825907,8.439,147.36,147.31,17.66479]
[1641638827110,24.69060015,147.4,147.31,17.66479]
[1641638827510,24.69060015,147.4,147.39,38.37690757]
[1641638828111,24.69060015,147.4,147.31,17.66479]
[1641638828312,24.69060015,147.4,147.3,15.45795474]
[1641638829013,32.89860015,147.4,147.37,38.34356999]
[1641638829414,32.89860015,147.4,147.29,82.41245474]
[1641638829615,7.81708507,147.37,147.29,82.41245474]
[1641638830016,7.81760402,147.36,147.29,62.75245474]
[1641638830816,27.66479,147.35,147.29,62.75245474]
[1641638831018,6.51724011,147.31,147.29,47.2945]
[1641638831217,6.51724011,147.31,147.28,18.16479]
[1641638831618,13.38924011,147.31,147.27,15.45795474]
[1641638832419,4.0,147.3,147.24,95.7279376]
[1641638832620,1.49238844,147.28,147.24,95.7279376]
[1641638832821,29.15717844,147.28,147.24,95.7279376]
[1641638833019,27.66479,147.28,147.24,95.7279376]
[1641638833220,27.66479,147.28,147.22,9.99471834]
[1641638833421,35.13779,147.28,147.22,9.99471834]
[1641638833622,35.13779,147.28,147.22,6.19471834]
[1641638834221,35.13779,147.28,147.2,68.1]
[1641638836925,27.66479,147.24,147.2,59.1]
[1641638837123,27.66479,147.24,147.17,177.0110276]
[1641638837323,27.66479,147.24,147.13,152.20967627]
[1641638837324,4.0,147.22,147.21,4.75098411]
[1641638837524,12.322,147.22,147.13,79.7279376]
[1641638837724,16.14751016,147.22,147.13,71.6679376]
[1641638838424,6.52131039,147.21,147.12,57.21406922]
[1641638838824,34.18610039,147.21,147.12,57.21406922]
[1641638839024,5.43600846,147.17,147.12,57.21406922]
[1641638839824,27.66479,147.21,147.13,57.21406922]
[1641638840024,19.5134602,147.21,147.13,57.21406922]
[1641638840424,19.5134602,147.21,147.1,27.66479]
[1641638840425,4.0,147.2,147.12,57.21406922]
[1641638840625,19.5134602,147.21,147.12,57.21406922]
[1641638840825,43.1782502,147.21,147.12,57.21406922]
[1641638841125,47.1782502,147.21,147.12,57.21406922]
[1641638841329,4.0,147.2,147.1,63.6956]
[1641638841525,4.0,147.2,147.1,53.3756]
[1641638841726,4.0,147.18,147.08,83.51885922]
[1641638841928,12.593,147.18,147.08,57.21406922]
[1641638842325,8.593,147.18,147.08,57.21406922]
[1641638842926,27.66479,147.14,147.08,57.21406922]
[1641638843626,27.66479,147.14,147.07,57.21406922]
[1641638844527,27.66479,147.14,147.05,166.36914758]
[1641638845228,5.43887468,147.09,147.05,166.36914758]
[1641638845428,5.44000049,147.06,147.04,51.21406922]
[1641638845728,6.52650676,147.1,147.04,39.73305337]
[1641638846129,6.52831145,147.06,147.02,1.699]
[1641638846931,34.19310145,147.06,147.02,1.699]
[1641638847334,6.52876753,147.05,147.02,1.699]
[1641638847534,6.52876753,147.05,146.99,67.3101]
[1641638847733,6.52876753,147.05,146.96,92.16239]
[1641638848333,6.52876753,147.05,146.96,27.66479]
[1641638848533,6.52876753,147.05,146.95,4.0]
[1641638848735,6.52876753,147.05,146.97,4.0]
[1641638848934,6.52876753,147.05,146.96,27.66479]
[1641638849737,6.53122547,146.99,146.95,8.50455483]
[1641638849939,13.41922547,146.99,146.95,0.86455483]
[1641638850137,13.41922547,146.99,146.95,0.00455483]
[1641638850337,13.41922547,146.99,146.95,5.5391351]
[1641638850537,0.99387127,146.95,146.91,95.42526284]
[1641638850838,8.163,146.95,146.91,95.42526284]
[1641638851037,8.163,146.95,146.93,4.0]
[1641638851238,0.0001,146.95,146.94,4.0]
[1641638851439,0.0001,146.95,146.91,95.42526284]
[1641638851440,0.0001,146.95,146.93,4.0]
[1641638851640,0.0001,146.95,146.88,102.48120531]
[1641638851839,27.66479,146.97,146.88,106.48120531]
[1641638852038,27.66479,146.97,146.91,4.0]
[1641638852240,27.66479,146.97,146.92,4.0]
[1641638852740,27.66479,146.97,146.88,102.48120531]
[1641638852941,5.678,146.98,146.88,102.48120531]
[1641638853342,5.678,146.98,146.88,95.67779]
[1641638853544,5.678,146.98,146.88,68.013]
[1641638853743,4.0,146.97,146.88,68.013]
[1641638853943,5.678,146.98,146.88,68.013]
[1641638854346,9.678,146.98,146.88,68.013]
[1641638854544,4.0,146.97,146.88,57.613]
[1641638854946,27.66479,146.92,146.88,57.613]
[1641638855143,27.66479,146.92,146.86,63.8563]
[1641638855144,34.52779,146.92,146.86,63.8563]
[1641638855544,34.52779,146.92,146.86,67.8563]
[1641638855745,34.52779,146.92,146.86,63.8563]
[1641638855945,6.863,146.92,146.86,4.0]
[1641638856148,14.34850315,146.94,146.91,4.0]
[1641638856446,14.34850315,146.94,146.91,9.816]
[1641638856648,3.15e-06,146.94,146.91,5.816]
[1641638856846,3.15e-06,146.94,146.92,27.66479]
[1641638857449,43.67621843,146.98,146.92,27.66479]
[1641638857745,5.44321723,146.98,146.92,27.66479]
[1641638857946,5.44434952,146.95,146.87,6.80410968]
[1641638858146,10.97634952,146.95,146.86,4.0]
[1641638858348,5.44543921,146.92,146.85,72.2841]
[1641638858546,5.44543921,146.92,146.84,10.80526728]
[1641638858745,5.44543921,146.92,146.84,6.80526728]
[1641638858945,33.11022921,146.92,146.85,27.66479]
[1641638859948,5.44654479,146.89,146.85,27.66479]
[1641638860147,13.83454479,146.89,146.85,27.66479]
[1641638860548,5.44396881,146.96,146.88,6.80341531]
[1641638860749,5.44396881,146.96,146.9,3.86412935]
[1641638860947,5.44396881,146.96,146.92,27.66479]
[1641638861149,5.44396881,146.96,146.92,33.31079]
[1641638861348,5.44396881,146.96,146.92,5.646]
[1641638862049,5.44396881,146.96,146.88,10.80341531]
[1641638862250,5.44396881,146.96,146.88,6.80341531]
[1641638862651,5.4448085,146.93,146.88,6.80341531]
[1641638863052,5.4448085,146.93,146.89,4.0]
[1641638863251,5.4448085,146.93,146.89,5.516]
[1641638864051,5.44426348,146.95,146.89,5.516]
[1641638864253,5.44426348,146.95,146.88,6.80341531]
[1641638864453,5.4446351,146.94,146.88,6.80341531]
[1641638864752,5.4446351,146.94,146.9,3.92222139]
[1641638864954,19.36014929,146.98,146.9,3.92222139]
[1641638865153,29.76014929,146.98,146.9,3.92222139]
[1641638865354,29.76014929,146.98,146.9,118.84688627]
[1641638865553,54.68580578,147.0,146.9,118.84688627]
[1641638865955,65.06580578,147.0,146.96,56.81753237]
[1641638866154,27.66479,147.02,147.0,7.38196998]
[1641638866356,4.0,147.01,147.0,6.998e-05]
[1641638866955,38.46982573,147.01,147.0,6.998e-05]
[1641638867155,34.46982573,147.01,147.0,6.998e-05]
[1641638867356,27.66479,147.01,146.93,27.1157419]
[1641638867556,27.66479,147.01,146.89,95.11759]
[1641638867757,41.80479,147.02,146.89,95.11759]
[1641638867957,41.80479,147.02,146.89,99.57259]
[1641638868656,41.80479,147.02,146.9,13.60556108]
[1641638869058,41.80479,147.02,146.93,27.66479]
[1641638869356,41.80479,147.02,146.93,34.43979]
[1641638870060,10.14,147.02,146.94,6.80087051]
[1641638870657,15.58180064,147.02,146.94,20.40643159]
[1641638870858,6.802027,147.08,147.04,36.43303244]
[1641638871058,34.466817,147.08,147.04,36.43303244]
[1641638871759,2.71488865,147.06,147.04,44.87803244]
[1641638872361,27.66479,147.08,147.05,7.60556108]
[1641638872562,4.0,147.06,147.05,6.108e-05]
[1641638872960,4.0,147.06,147.05,15.85893804]
[1641638873160,10.80248971,147.07,147.05,15.85893804]
[1641638873360,27.66479,147.08,147.05,15.85893804]
[1641638873761,27.66479,147.08,147.05,57.73190791]
[1641638873962,4.0,147.06,147.05,57.73190791]
[1641638874163,31.66479,147.08,147.05,57.73190791]
[1641638874363,4.0,147.06,147.05,48.73190791]
[1641638874562,4.0,147.06,147.04,35.19303244]
[1641638874761,45.4362963,147.1,147.04,131.41277716]
[1641638875164,6.80179567,147.08,147.04,33.97303244]
[1641638875865,45.4362963,147.1,147.04,33.97303244]
[1641638876165,6.52839275,147.05,147.04,29.65703244]
[1641638876765,6.52839275,147.05,147.01,15.85887696]
[1641638876965,6.802027,147.08,147.01,9.32849449]
[1641638877566,6.802027,147.08,147.02,4.0]
[1641638877769,6.802027,147.08,147.0,26.24479]
[1641638878468,4.0,147.06,147.0,122.46453472]
[1641638878870,10.802027,147.08,147.0,122.46453472]
[1641638879071,6.802027,147.08,147.0,122.46453472]
[1641638879471,6.802027,147.08,147.07,5.04639318]
[1641638879671,6.802027,147.08,147.0,120.46453472]
[1641638879871,6.802027,147.08,147.0,108.46453472]
[1641638880073,6.802027,147.08,147.01,96.21974472]
[1641638880672,4.0,147.05,147.01,96.21974472]
[1641638880872,9.69,147.05,147.0,12.24479]
[1641638881071,9.69,147.05,146.94,133.519]
[1641638881471,9.69,147.05,146.95,20.25820933]
[1641638881670,9.69,147.05,146.94,133.519]
[1641638882273,4.0,147.02,146.91,141.50911372]
[1641638882478,12.139,147.02,146.91,208.70791372]
[1641638882676,8.139,147.02,146.91,67.1988]
[1641638883075,39.80379,147.02,146.94,27.66479]
[1641638883277,35.80379,147.02,146.94,27.66479]
[1641638883475,39.80379,147.02,146.94,27.66479]
[1641638883677,35.80379,147.02,146.94,27.66479]
[1641638884076,39.80379,147.02,146.94,27.66479]
[1641638884276,35.80379,147.02,146.94,27.66479]
[1641638884876,35.80379,147.02,146.94,26.66479]
[1641638885078,4.0,146.97,146.92,89.21974472]
[1641638885277,6.922,146.97,146.92,89.21974472]
[1641638885479,6.922,146.97,146.93,89.21974472]
[1641638885678,6.922,146.97,146.93,80.21974472]
[1641638886280,6.922,146.97,146.87,64.7044]
[1641638886881,7.83811743,146.98,146.87,64.7044]
[1641638887080,27.66479,146.97,146.88,147.92177533]
[1641638887281,6.53342561,146.94,146.88,147.92177533]
[1641638887480,26.46114099,146.97,146.88,147.92177533]
[1641638888682,26.46114099,146.97,146.89,120.25698533]
[1641638889283,26.46114099,146.97,146.89,126.81598533]
[1641638889684,26.46114099,146.97,146.9,120.25698533]
[1641638890088,4.0,146.91,146.82,141.50911372]
[1641638890285,12.16359729,146.91,146.82,141.50911372]
[1641638890484,12.16359729,146.91,146.82,131.86911372]
[1641638890688,12.16359729,146.91,146.82,121.76911372]
[1641638891089,39.82838729,146.91,146.82,116.76911372]
[1641638891293,34.47538729,146.91,146.81,27.66479]
[1641638891490,34.47538729,146.91,146.83,14.39603395]
[1641638891689,38.47538729,146.91,146.83,14.39603395]
[1641638892089,6.81477443,146.84,146.83,14.39603395]
[1641638892588,7.448,146.85,146.74,4.0]
[1641638892789,6.53800205,146.84,146.74,4.0]
[1641638893190,27.66479,146.83,146.74,31.66479]
[1641638893590,27.66479,146.83,146.75,38.38942386]
[1641638894692,31.66479,146.83,146.75,38.38942386]
[1641638895093,27.66479,146.83,146.75,30.38942386]
[1641638895490,27.66479,146.83,146.75,21.38942386]
[1641638895697,6.54048574,146.78,146.75,21.38942386]
[1641638895995,13.01848574,146.78,146.75,13.38942386]
[1641638896191,4.0,146.76,146.75,0.98942386]
[1641638896391,6.54281739,146.73,146.72,21.05233199]
[1641638896593,13.42181739,146.73,146.72,13.61233199]
[1641638896791,13.42181739,146.73,146.72,6.61233199]
[1641638896995,24.24030914,146.73,146.69,12.06064776]
[1641638897293,6.81942171,146.7,146.67,77.07277158]
[1641638897493,17.27342171,146.7,146.66,65.05277158]
[1641638897693,15.40033363,146.7,146.66,47.05277158]
[1641638897893,15.40033363,146.7,146.66,40.05277158]
[1641638898492,15.40033363,146.7,146.61,4.0]
[1641638898692,15.40033363,146.7,146.58,50.40437852]
[1641638898693,6.54433363,146.7,146.58,50.40437852]
[1641638899092,27.66479,146.67,146.66,4.0]
[1641638899293,27.66479,146.67,146.58,54.40437852]
[1641638899492,27.66479,146.67,146.58,22.73958852]
[1641638899892,27.66479,146.67,146.59,9.01364106]
[1641638900092,6.54689517,146.64,146.58,2.56496788]
[1641638900293,6.54994011,146.57,146.45,131.46676218]
[1641638900495,4.0,146.46,146.3,194.48039146]
[1641638900695,4.0,146.45,146.37,171.82362444]
[1641638900896,4.0,146.42,146.37,78.30362444]
[1641638901094,55.32958,146.38,146.37,43.84452444]
[1641638901594,55.32958,146.38,146.3,190.48039146]
[1641638901595,66.1639157,146.38,146.3,65.02929174]
[1641638901795,4.0,146.32,146.14,4.0]
[1641638901996,12.221,146.32,146.14,4.0]
[1641638902195,4.0,146.28,146.13,27.6684698]
[1641638902394,4.0,146.21,146.13,10.5284698]
[1641638902594,5.482,146.21,146.11,4.0]
[1641638902794,5.482,146.21,146.08,4.0]
[1641638902994,4.0,146.2,146.0,135.9326]
[1641638903194,27.66479,146.17,146.09,1.64]
[1641638903394,2.36,146.15,146.07,27.66479]
[1641638903595,2.36,146.1,146.02,1.711]
[1641638903794,6.402,146.1,145.97,6.84603272]
[1641638903994,6.402,146.1,145.96,6.84650144]
[1641638904194,2.36,146.06,145.94,8.55843906]
[1641638904396,2.36,146.02,145.92,1.712]
[1641638904595,2.36,145.97,145.9,1.64]
[1641638904795,10.142,145.97,145.85,6.85142681]
[1641638904996,7.782,145.97,145.85,6.85142681]
[1641638905199,27.66479,145.96,145.86,1.64]
[1641638905398,27.66479,145.96,145.87,1.64]
[1641638905599,34.51809501,145.98,145.89,1.64]
[1641638905800,27.66479,145.98,145.88,6.85001884]
[1641638906002,33.20779,145.98,145.91,1.64]
[1641638906202,33.20779,145.98,145.86,1.64]
[1641638906600,33.20779,145.98,145.9,1.64]
[1641638906802,5.543,145.98,145.88,1.64]
[1641638907001,6.85166153,146.01,145.84,8.56489626]
[1641638907201,27.66479,146.01,145.86,1.64]
[1641638907402,6.85260056,145.99,145.87,1.713]
[1641638907602,34.51645153,146.01,145.93,1.64]
[1641638907802,27.66479,146.01,145.88,6.85025346]
[1641638908002,27.66479,146.01,145.9,1.64]
[1641638908206,12.68,146.1,146.0,1.64]
[1641638908404,2.36,146.1,146.03,1.64]
[1641638908604,2.36,146.13,146.03,7.89]
[1641638908806,2.36,146.15,146.04,1.64]
[1641638909104,27.66479,146.16,146.07,27.66479]
[1641638909304,241.97418683,146.19,146.11,1.64]
[1641638909505,2.36,146.22,146.11,5.554]
[1641638909705,6.84158314,146.23,146.11,7.194]
[1641638909906,2.36,146.27,146.13,1.64]
[1641638910108,2.36,146.26,146.14,1.64]